[Event "8th Fischer Heraklion-GM 2022"]
[Site "Heraklion"]
[Date "2022.05.04"]
[Round "9.4"]
[White "Jahncke, Giso"]
[Black "Szwed, Jacek"]
[Result "0-1"]
[ECO "D25"]
[WhiteElo "2326"]
[BlackElo "2360"]
[Annotator "TA"]
[PlyCount "70"]
[EventDate "2022.04.18"]
[EventType "tourn"]
[EventCountry "GRE"]
[SourceTitle "playchess.com"]
[Source "ChessBase"]
[SourceQuality "1"]
[TimeControl "40/5400+30:1800+30"]

{[%evp 9,70,43,37,41,33,0,26,-19,0,0,0,7,0,-2,-8,-6,0,-3,0,0,1,0,0,-7,0,0,0,-13,-12,-37,20,27,27,31,33,18,35,30,32,-42,-38,-43,-44,-71,-70,-89,-99,-149,-116,-360,-339,-632,-588,-791,-786,-773,-758,-720,-695,-1059,-1699,-1268,-1052]} 1. d4 {[%emt 0:00:03]} d5 {[%emt 0:00:03]} 2. Nf3 {[%emt 0:00:08]} Nf6 {[%emt 0:00:05]} 3. c4 {[%emt 0:00:09]} dxc4 {[%emt 0:00:07]} 4. e3 {[%emt 0:00:05]} b5 {[%emt 0:00:05]} 5. a4 {[%emt 0:03:57]} b4 {[%emt 0:00:05]} 6. a5 {[%emt 0:09:18] D25: Queen's Gambit Accepted: 4 e3: sidelines and 4...Bg4.} e6 {[%emt 0:00:08] [#]} 7. Ne5 $146 {[%emt 0:06:05]} ({Predecessor:} 7. a6 Nbd7 8. Bxc4 Bd6 9. Nbd2 O-O 10. O-O c5 11. Bd3 cxd4 12. exd4 Bf4 13. Qc2 {½-½ (35) Bacrot,E (2712)-Romanov,E (2613) Nakhchivan 2015}) 7... Be7 {[%emt 0:06:23]} 8. Qa4+ {[%emt 0:05:16] White has an edge.} Bd7 {[%emt 0:02:36]} 9. Nxd7 {[%emt 0:00:22]} Nbxd7 {[%emt 0:00:05]} 10. Bxc4 {[%emt 0:01:45]} c5 {[%emt 0:00:07]} 11. O-O {[%emt 0:04:35]} O-O {[%emt 0:00:25]} 12. Nd2 {[%emt 0:00:42]} Qc7 {[%emt 0:03:31]} 13. Be2 {[%emt 0:01:39]} Rab8 {[%emt 0:26:56]} 14. Qb3 {[%emt 0:10:33]} Qc6 {[%emt 0:27:13]} 15. Nc4 {[%emt 0:08:08]} Rfc8 {[%emt 0:03:24]} 16. f3 {[%emt 0:10:55]} cxd4 {[%emt 0:04:10]} 17. exd4 {[%emt 0:01:32]} Nd5 {[%emt 0:00:01]} 18. Bd2 {[%emt 0:00:41]} Bf6 {[%emt 0:00:52]} 19. Qd3 {[%emt 0:01:52]} Qxc4 {[%emt 0:11:03]} 20. Qxc4 $11 {[%emt 0:00:13]} Rxc4 {[%emt 0:00:01]} 21. Bxc4 {[%emt 0:00:08] A strong pair of Bishops.} Bxd4+ {[%emt 0:00:01]} 22. Kh1 {[%emt 0:00:14]} Ne5 {[%emt 0:05:05]} 23. Bxd5 {[%emt 0:05:36]} exd5 {[%emt 0:00:00]} 24. Bf4 {[%emt 0:04:45]} (24. Rfe1 $14) 24... Bxb2 $15 {[%emt 0:01:28]} 25. Rab1 {[%emt 0:04:39] [#]} g5 $1 {[%emt 0:00:56]} 26. Bxg5 {[%emt 0:14:25]} (26. Rxb2 gxf4) 26... Nc4 {[%emt 0:00:05]} 27. Rfd1 {[%emt 0:00:58]} Rb5 {[%emt 0:00:39][%mdl 1024] Black has strong compensation. Black is more active.} 28. Re1 {[%emt 0:02:14]} (28. Rd3 $142) 28... Kg7 {[%emt 0:01:32] Threatens to win with ...b3.} 29. Bd8 $2 {[%emt 0:00:40] [#] Loses the game.} (29. a6 $17 Ra5 30. Red1) 29... Bc3 $19 {[%emt 0:01:26]} 30. Rec1 {[%emt 0:02:22]} (30. Re7 Nd2 31. Rd1) 30... d4 {[%emt 0:00:17] Black is clearly winning.} ({Stronger than} 30... Nd2 31. Rxc3 Nxb1 32. Rc6 $17) 31. a6 {[%emt 0:00:03]} b3 {[%emt 0:01:02][%cal Bb4b3,Bb3b2][%mdl 32]} 32. Kg1 {[%emt 0:01:28]} b2 {[%emt 0:02:56]} 33. Rd1 {[%emt 0:00:06]} Na3 {[%emt 0:00:08]} 34. Kf2 {[%emt 0:00:06]} Nxb1 {[%emt 0:00:18]} 35. Rxb1 {[%emt 0:00:03]} Rd5 {[%emt 0:01:13] Weighted Error Value: White=0.54/Black=0.07 (flawless)} 0-1